Cogmind - Beta 14 @@@ ROGUE MODE // 2025.01.19 @ 23:42:53 Player: Lorraine Result: Destroyed by G-50 Soldier with Heavy Laser Performance ------------- Evolutions (2) 1000 Regions Visited (7) 1400 Robots Destroyed (11) 55 Value Destroyed (440) 440 Prototype IDs (25) 500 Alien Tech Used (0) 0 Bonus (1000) 1000 TOTAL SCORE: 4395 Bonus ------- Entered Garrisons 200 Used RIF Installer 500 Aligned with FarCom 300 Cogmind --------- Core Integrity 0/550 Matter 183/300 Energy 67/100 System Corruption 4% Temperature Cool (27) Movement Core (150) Ox2 Location -8/Materials Parts ------- > --- POWER (1) -------- (None) > --- PROPULSION (4) --- (None) > --- UTILITY (4) ------ Lightpack 2.0 > --- WEAPON (2) ------- Lightning Gun > --- INVENTORY (40) --- Light Treads Medium Treads Medium Treads Medium Treads Improved Heat Sink Improved Heat Sink Coolant Injector Large Storage Unit 0b10 Alert Chip Armor Integrity Analyzer Transmission Jammer Transmission Jammer Improved Medium Armor Plating Insulated Plating Improved Trap Extractor (0/6) Recalibrator Improved Field Recycling Unit (0) Chronowheel Lightning Gun Heavy Laser Advanced Assault Cannon Peak State ------------ > --- POWER ------------ Light Nuclear Core > --- PROPULSION ------- Gravmag System Gravmag System Gravmag System Gravmag System > --- UTILITY ---------- Lightpack 2.0 Improved Medium Armor Plating > --- WEAPON ----------- Lightning Gun Heavy Laser > --- INVENTORY -------- Light Treads Medium Treads Medium Treads Medium Treads Aluminum Leg Aluminum Leg Aluminum Leg Improved Aluminum Leg Improved Heat Sink Improved Heat Sink Coolant Injector Large Storage Unit 0b10 Alert Chip Armor Integrity Analyzer Transmission Jammer Transmission Jammer Shock Absorption System Hardlight Generator Improved Trap Extractor Recalibrator Improved Field Recycling Unit Chronowheel Lightning Gun Lightning Gun Lightning Gun Particle Gun Heavy Particle Cannon Advanced Assault Cannon Grenade Launcher [Rating: 71] Favorites ----------- Power Ion Engine Engine Ion Engine Power Core Micro Nuclear Core Propulsion Aluminum Leg Leg Aluminum Leg Hover Unit Gravmag System Utility Visual Processing Unit Device Improved Trap Extractor Storage Large Storage Unit Processor Visual Processing Unit Protection Improved Medium Armor Plating Weapon Medium Laser Energy Gun Medium Laser Energy Cannon Plasma Cannon Ballistic Gun Heavy Battle Rifle Launcher Grenade Launcher Build | -11 -10 -10 -10 -9 -8 -8 -8 ------- Run | Yrd Mat Min Exi Min Mat Gar Mat Slots Evolved 4 | . . . . . 4 . . Power . | . . . . . . . . Propulsion 2 | . . . . . 2 . . Utility 2 | . . . . . 2 . . Weapon . | . . . . . . . . Parts Attached 52 | 4 3 1 3 7 1 6 27 Power 6 | 1 . 1 1 1 . 1 1 Engine 4 | 1 . 1 1 . . . 1 Core 2 | . . . . 1 . 1 . Reactor . | . . . . . . . . Propulsion 20 | 2 . . . 3 . 3 12 Treads . | . . . . . . . . Leg 13 | 2 . . . 3 . 3 5 Wheel . | . . . . . . . . Hover 7 | . . . . . . . 7 Flight . | . . . . . . . . Utility 11 | 1 1 . 1 1 1 1 5 Device 3 | . . . . 1 . . 2 Storage 3 | 1 . . 1 . 1 . . Processor 1 | . 1 . . . . . . Hackware . | . . . . . . . . Protection 4 | . . . . . . 1 3 Artifact . | . . . . . . . . Weapon 15 | . 2 . 1 2 . 1 9 Energy Gun 10 | . 2 . . 1 . 1 6 Energy Cannon 2 | . . . . 1 . . 1 Ballistic Gun 1 | . . . 1 . . . . Ballistic Cannon . | . . . . . . . . Launcher 2 | . . . . . . . 2 Special Weapon . | . . . . . . . . Impact Weapon . | . . . . . . . . Slashing Weapon . | . . . . . . . . Piercing Weapon . | . . . . . . . . Special Melee Weapon . | . . . . . . . . Unidentified Prototypes . | . . . . . . . . Corrupted Parts 1 | . . . . . . . 1 System Corruption 4 | . . . . . . . 4 Parts Lost 23 | . . . . 2 . 3 18 Power 4 | . . . . 1 . 1 2 Propulsion 12 | . . . . 1 . 1 10 Utility 2 | . . . . . . . 2 Weapon 5 | . . . . . . 1 4 Highest Loss Streak 13 | . . . . 2 . 3 13 To Critical Strikes . | . . . . . . . . Average Slot Usage (%) 88 | . 81 100 99 100 63 74 64 Engine 9 | . 14 14 13 11 . . 4 Core 2 | . . . . 2 9 9 2 Leg 25 | . 28 28 28 28 18 29 17 Hover 1 | . . . . . . . 9 Device 2 | . . . . 12 9 2 2 Storage 12 | . 14 14 14 14 9 9 9 Processor 7 | . 1 14 14 1 . . . Protection 1 | . . . . . . 6 4 Energy Gun 15 | . 22 28 18 6 9 9 10 Energy Cannon 1 | . . . . 7 . . 2 Ballistic Gun 7 | . . . 9 14 9 8 . Peak Build Rating 71 | 4 8 9 16 29 58 61 71 Average Rating 26 | 2 5 8 13 22 56 59 56 On Entrance 22 | . 4 8 9 16 29 58 57 Naked Turns . | . . . . . . . . Heaviest Build 39 | 8 12 14 31 39 22 26 26 Greatest Support 48 | 20 20 20 20 28 28 48 43 Greatest Overweight (x) 1 | . . . 1 1 . . 1 Average Overweight (x) . | . . . . 1 . . . Largest Inventory Capacity 40 | 8 8 8 15 15 40 40 40 Average Capacity 20 | 6 8 8 11 15 39 40 40 Most Carried 33 | 6 8 8 8 15 21 23 33 Average Carried 13 | 4 5 7 7 13 15 21 27 Final Capacity 40 | 8 8 8 15 15 40 40 40 Final Carried 21 | 6 7 8 8 15 21 20 21 Class Distribution -------------------- 69% | Mutant 30% | Hauler-Mutant Dominant Class ---------------- Mutant | -10/Materials Mutant | -10/Mines Mutant | -10/Exiles Mutant | -9/Mines Hauler-Mutant | -8/Materials Hauler-Mutant | -8/Garrison Hauler-Mutant | -8/Materials Resources | -11 -10 -10 -10 -9 -8 -8 -8 ----------- Run | Yrd Mat Min Exi Min Mat Gar Mat Matter Collected 561 | 235 . 45 . 113 . 65 103 Remotely . | . . . . . . . . Salvage Created 457 | . . 60 . 208 . 86 103 Parts 24 | . . 4 . 6 . 7 7 Haulers Intercepted . | . . . . . . . . Recyclers Shooed . | . . . . . . . . Parts Field Recycled . | . . . . . . . . Retrieved Matter . | . . . . . . . . Parts Self-Destructed . | . . . . . . . . Prevented . | . . . . . . . . Kills | -11 -10 -10 -10 -9 -8 -8 -8 ------- Run | Yrd Mat Min Exi Min Mat Gar Mat Combat Hostiles Destroyed 10 | . . 1 . 5 . 2 2 Guns 9 | . . 1 . 4 . 2 2 Classes Destroyed 4 | . . 1 . 1 . . 2 Worker 1 | . . . . . . . 1 Grunt 7 | . . 1 . 3 . 2 1 Duelist 2 | . . . . 2 . . . Hunter 1 | . . . . . . . 1 Best Kill Streak 3 | . . 1 . 3 . 2 2 Combat Bots Only 3 | . . 1 . 3 . 2 1 Max Kills in Single Turn 2 | . . 1 . 1 . 1 2 Gunslinging . | . . . . . . . . Exploded . | . . . . . . . . Melee . | . . . . . . . . Uniques/NPCs Destroyed . | . . . . . . . . Combat | -11 -10 -10 -10 -9 -8 -8 -8 -------- Run | Yrd Mat Min Exi Min Mat Gar Mat Hostile Shots Fired 327 | . 1 1 . 42 2 99 182 Missed 98 | . . 1 . 9 1 41 46 Damage Taken 3291 | . 12 77 . 494 15 549 2144 Core 674 | . . . . 109 . 14 551 Absorbed by Shields . | . . . . . . . . Ignored by Resistances 1 | . . . . . . . 1 Core Remaining (%) 78 | 100 . . . 56 . . . Volleys Fired 35 | . 2 4 . 12 . 5 12 Largest 2 | . 2 2 . 2 . 2 2 Hottest 140 | . 100 100 . 113 . 102 140 Shots Fired 68 | . 4 8 . 23 . 10 23 Gun 51 | . 4 8 . 13 . 10 16 Cannon 15 | . . . . 10 . . 5 Launcher 2 | . . . . . . . 2 Special . | . . . . . . . . Kinetic 16 | . . . . 11 . 5 . Thermal 41 | . 4 8 . 12 . 5 12 Explosive 2 | . . . . . . . 2 Electromagnetic 9 | . . . . . . . 9 Robot Hit Streak 11 | . 1 6 . 10 . 3 11 Robot Miss Streak 3 | . 3 1 . 3 . 1 3 Penetration Max . | . . . . . . . . Secondary Targets 2 | . . . . 1 . 1 . Max Gunslinging Chain 1 | . . . . 1 . 1 . Shots Hit Robots 44 | . 1 6 . 17 . 6 14 Core Hits 26 | . . 3 . 6 . 4 13 Critical Kills 1 | . . . . 1 . . . Critical Parts Destroyed . | . . . . . . . . Critical Strikes 2 | . . . . 1 . . 1 Burn 1 | . . . . . . . 1 Meltdown 1 | . . . . 1 . . . Melee Attacks . | . . . . . . . . Impact . | . . . . . . . . Slashing . | . . . . . . . . Piercing . | . . . . . . . . Sneak Attacks . | . . . . . . . . Combat Hostiles . | . . . . . . . . Follow-up Attacks . | . . . . . . . . Damage Inflicted 1167 | . 12 75 . 407 . 115 558 Guns 651 | . 12 75 . 254 . 115 195 Cannons 228 | . . . . 153 . . 75 Explosions 288 | . . . . . . . 288 Melee . | . . . . . . . . Ramming . | . . . . . . . . Kinetic 276 | . . . . 217 . 59 . Thermal 501 | . 12 75 . 190 . 56 168 Explosive 288 | . . . . . . . 288 Electromagnetic 102 | . . . . . . . 102 Impact . | . . . . . . . . Slashing . | . . . . . . . . Piercing . | . . . . . . . . Highest Corruption 4 | . . . . . . . 4 Average Corruption 4 | . . . . . . . 4 Corruption Purged . | . . . . . . . . Corruption Blocked . | . . . . . . . . Effects 2 | . . . . . . . 2 Heat Flow Errors 1 | . . . . . . . 1 Parts Rejected 1 | . . . . . . . 1 Overload Shots . | . . . . . . . . Overflow Damage 17 | . . . . . . . 17 Projectiles . | . . . . . . . . Explosions 17 | . . . . . . . 17 Melee . | . . . . . . . . Knockbacks . | . . . . . . . . Impact . | . . . . . . . . Kinetic . | . . . . . . . . Secondary . | . . . . . . . . Self-Inflicted Damage 35 | . . . . . . . 35 Shots 2 | . . . . . . . 2 Rammed . | . . . . . . . . Targets Rammed . | . . . . . . . . Kicked . | . . . . . . . . Crushed . | . . . . . . . . Highest Temperature 353 | . 78 81 . 353 . 210 352 Average Temperature 122 | . 40 40 . 160 . 102 123 Received Heat Transfer 1227 | . 6 . . 168 9 117 927 Effects 5 | . . . . 4 . . 1 Interference 4 | . . . . 3 . . 1 Damage (minor) 1 | . . . . 1 . . . Siege Activations . | . . . . . . . . Robots Corrupted . | . . . . . . . . Combat Hostiles . | . . . . . . . . Parts Fried . | . . . . . . . . Impact Corruptions . | . . . . . . . . Robots Melted 1 | . . . . 1 . . . Combat Hostiles 1 | . . . . 1 . . . Parts Melted 1 | . . . . 1 . . . Heat Transferred 1114 | . 37 222 . 374 . 111 370 Parts Sabotaged . | . . . . . . . . Parts Stolen . | . . . . . . . . Parts Stripped . | . . . . . . . . Power Chain Reactions . | . . . . . . . . Alert | -11 -10 -10 -10 -9 -8 -8 -8 ------- Run | Yrd Mat Min Exi Min Mat Gar Mat Peak Influence 134 | . 75 58 . 105 55 90 134 Initial 40 | . . 28 . . 40 35 29 Average 43 | . 19 36 . 36 40 65 58 Maximum Alert Level . | . . . . . . . . Low Security (%) 100 | 100 100 100 . 100 100 100 100 Level 1 . | . . . . . . . . Level 2 . | . . . . . . . . Level 3 . | . . . . . . . . Level 4 . | . . . . . . . . Level 5 . | . . . . . . . . High Security . | . . . . . . . . Max Security . | . . . . . . . . Squads Dispatched 3 | . 2 . . . . . 1 Investigation 1 | . 1 . . . . . . Extermination . | . . . . . . . . Reinforcement 2 | . 1 . . . . . 1 Assault . | . . . . . . . . Garrison . | . . . . . . . . Intercept . | . . . . . . . . Searches Triggered . | . . . . . . . . Construction Impeded . | . . . . . . . . Haulers Reinforced . | . . . . . . . . Active Scanning Responses . | . . . . . . . . Cargo Convoy Interrupts . | . . . . . . . . Stealth | -11 -10 -10 -10 -9 -8 -8 -8 --------- Run | Yrd Mat Min Exi Min Mat Gar Mat Distress Signals 2 | . 1 . . . . . 1 Communications Jammed . | . . . . . . . . Distress Signals . | . . . . . . . . Times Spotted 54 | . 5 4 . 5 1 13 26 Peak Tracking Total 12 | . 4 3 . 3 1 10 12 Tactical Retreats 4 | . 1 . . . . 1 2 Traps | -11 -10 -10 -10 -9 -8 -8 -8 ------- Run | Yrd Mat Min Exi Min Mat Gar Mat Traps Triggered 2 | . . . . 1 . 1 . Indirectly . | . . . . . . . . Trap Hack Attempts . | . . . . . . . . Triggered . | . . . . . . . . Disarmed . | . . . . . . . . Reprogrammed . | . . . . . . . . Reused . | . . . . . . . . Traps Extracted . | . . . . . . . . Installed . | . . . . . . . . Triggered . | . . . . . . . . Machines | -11 -10 -10 -10 -9 -8 -8 -8 ---------- Run | Yrd Mat Min Exi Min Mat Gar Mat Machines Disabled . | . . . . . . . . Max in Single Turn . | . . . . . . . . Machines Repaired . | . . . . . . . . Machines Dismantled . | . . . . . . . . Machines Sabotaged . | . . . . . . . . Overloaded Fab Kills . | . . . . . . . . Hacking | -11 -10 -10 -10 -9 -8 -8 -8 --------- Run | Yrd Mat Min Exi Min Mat Gar Mat Machines Accessed 10 | . 1 . 5 1 2 . 1 Terminals 3 | . 1 . . . 1 . 1 Fabricators . | . . . . . . . . Repair Stations . | . . . . . . . . Recycling Units . | . . . . . . . . Scanalyzers . | . . . . . . . . Garrison Access 1 | . . . . . 1 . . Total Hacks 59 | . 4 . 50 1 2 . 2 Successful 55 | . 1 . 50 1 2 . 1 Failed 4 | . 3 . . . . . 1 Catastrophic . | . . . . . . . . Database Lockouts . | . . . . . . . . Manual 7 | . . . 7 . . . . Terminals 7 | . 4 . . . 1 . 2 Fabricators . | . . . . . . . . Repair Stations . | . . . . . . . . Recycling Units . | . . . . . . . . Scanalyzers . | . . . . . . . . Garrison Access 1 | . . . . . 1 . . Terminal Hacks 54 | . 1 . 50 1 1 . 1 Record 50 | . . . 49 . 1 . . Prototype ID Bank 1 | . 1 . . . . . . Open Door 1 | . . . . 1 . . . Branch Access Points 1 | . . . . . . . 1 Derelict Proto ID Bank 1 | . . . 1 . . . . Fabricator Hacks . | . . . . . . . . Repair Station Hacks . | . . . . . . . . Recycling Unit Hacks . | . . . . . . . . Scanalyzer . | . . . . . . . . Garrison Access Hacks 1 | . . . . . 1 . . Unlock Access 1 | . . . . . 1 . . Unauthorized Hacks . | . . . . . . . . Terminals . | . . . . . . . . Fabricators . | . . . . . . . . Repair Stations . | . . . . . . . . Recycling Units . | . . . . . . . . Scanalyzers . | . . . . . . . . Garrison Access . | . . . . . . . . Data Cores Recovered . | . . . . . . . . Used . | . . . . . . . . Hacking Detections 3 | . 1 . . . 1 . 1 Full Trace Events 1 | . 1 . . . . . . Feedback Events . | . . . . . . . . Feedback Blocked . | . . . . . . . . Robot Schematics Acquired . | . . . . . . . . Robots Built . | . . . . . . . . Authchips . | . . . . . . . . Time . | . . . . . . . . Total Robot Build Rating . | . . . . . . . . Part Schematics Acquired . | . . . . . . . . Parts Built . | . . . . . . . . Authchips . | . . . . . . . . Time . | . . . . . . . . Total Part Build Rating . | . . . . . . . . Parts Repaired . | . . . . . . . . Time . | . . . . . . . . Parts Recycled . | . . . . . . . . Recycled Matter . | . . . . . . . . Retrieved Matter . | . . . . . . . . Retrieved Components . | . . . . . . . . Parts Scanalyzed . | . . . . . . . . Part Schematics Acquired . | . . . . . . . . Parts Damaged . | . . . . . . . . Bothacking | -11 -10 -10 -10 -9 -8 -8 -8 ------------ Run | Yrd Mat Min Exi Min Mat Gar Mat Used RIF Installer 1 | . . . . . . 1 . Robots Hacked . | . . . . . . . . Non-combat . | . . . . . . . . Combat . | . . . . . . . . Robot Hacks Applied . | . . . . . . . . Relay Couplers Released . | . . . . . . . . Fabnet Peak Effective % . | . . . . . . . . Robots Rewired . | . . . . . . . . Allies Hacked . | . . . . . . . . Hacks Repelled . | . . . . . . . . Allies | -11 -10 -10 -10 -9 -8 -8 -8 -------- Run | Yrd Mat Min Exi Min Mat Gar Mat Total Allies . | . . . . . . . . Largest Group . | . . . . . . . . Highest-Rated Group . | . . . . . . . . Highest-Rated Ally . | . . . . . . . . Total Orders . | . . . . . . . . Ally Attacks . | . . . . . . . . Total Damage . | . . . . . . . . Kills . | . . . . . . . . Allies Corrupted . | . . . . . . . . Allies Melted . | . . . . . . . . Intel | -11 -10 -10 -10 -9 -8 -8 -8 ------- Run | Yrd Mat Min Exi Min Mat Gar Mat Robot Analysis Total . | . . . . . . . . Derelict Logs Recovered . | . . . . . . . . Drone Launches . | . . . . . . . . Drone Recoveries . | . . . . . . . . Exploration | -11 -10 -10 -10 -9 -8 -8 -8 ------------- Run | Yrd Mat Min Exi Min Mat Gar Mat Turns Passed 2280 | 58 154 112 959 309 120 214 354 Spaces Moved 1427 | 42 117 81 643 116 82 156 190 Core 25 | 12 . . . . . . 13 Treads . | . . . . . . . . Legs 1332 | 30 117 81 643 116 82 156 107 Wheels . | . . . . . . . . Hover 70 | . . . . . . . 70 Flight . | . . . . . . . . Fastest Speed 48 | 50 120 120 120 190 120 120 48 Average Speed 134 | 100 120 120 147 190 120 120 94 Slowest Speed 190 | 120 120 120 190 190 120 120 120 Overloaded Moves . | . . . . . . . . Propulsion Burnouts . | . . . . . . . . Robots Hopped . | . . . . . . . . Cave-ins Triggered . | . . . . . . . . Exploration Rate (%) 29 | 4 31 37 93 19 7 26 21 Regions Visited 7 Branch Regions 3 Pre-discovered Areas 1 | . . . 1 . . . . Known Exits Taken 1 | . . . . . 1 . . Unknown Exits Taken 5 | 1 1 1 1 1 . . . Scrap Searched . | . . . . . . . . Spaces Dug . | . . . . . . . . Terrain Destroyed 16 | . . . . 5 . . 11 Melee . | . . . . . . . . Projectile 6 | . . . . 5 . . 1 AOE 10 | . . . . . . . 10 Terrain Rammed . | . . . . . . . . Walls Destroyed . | . . . . . . . . Machines Disabled . | . . . . . . . . Actions | -11 -10 -10 -10 -9 -8 -8 -8 --------- Run | Yrd Mat Min Exi Min Mat Gar Mat Total 1730 | 58 126 88 657 182 104 172 343 Wait 121 | 3 1 . . 33 . . 84 Move 1421 | 41 116 80 642 115 82 155 190 Hop . | . . . . . . . . Pick Up 78 | 10 4 2 3 12 20 6 21 Fast Attach 1 | . . . 1 . . . . Attach 39 | 4 3 1 1 3 1 5 21 Detach 3 | . . . . . . . 3 Swap 12 | . . . 1 4 . 1 6 Drop 18 | . . 1 7 3 1 . 6 Fire 35 | . 2 4 . 12 . 5 12 Melee . | . . . . . . . . Ram . | . . . . . . . . Kick . | . . . . . . . . Crush . | . . . . . . . . Escape Stasis . | . . . . . . . . Rewire 2 | . . . 2 . . . . Trap . | . . . . . . . . Miscellaneous . | . . . . . . . . Route ------- -11/Scrapyard -10/Materials -10/Mines -10/Exiles (discovered 2 exits: *Min x2) -9/Mines -8/Materials -8/Garrison -8/Materials (discovered 2 exits: Sto x2) History --------- Turn | Location | Event 9 | -11/Scrapyard | Discovered new exit (range 14) 59 | -11/Scrapyard | Entered Materials 155 | -10/Materials | Met 8R-AWN 187 | -10/Materials | Discovered new exit (range 14) 213 | -10/Materials | Entered Mines 215 | -10/Mines | Followed 8R-AWN into the Mines 227 | -10/Mines | A weapon hastily lodged in a ceiling crevice suddenly fell to the ground 272 | -10/Mines | Assembled infested the area 282 | -10/Mines | Met a Derelict bent on vengeance 306 | -10/Mines | Build established: Mutant 320 | -10/Mines | Discovered new exit (range 5) 325 | -10/Mines | Entered Exiles 347 | -10/Exiles | Discovered new exit (range 15) 371 | -10/Exiles | Welcomed by 8R-AWN 425 | -10/Exiles | Learned about 8R-AWN's background 445 | -10/Exiles | Met EX-HEX 513 | -10/Exiles | Met EX-BIN 532 | -10/Exiles | Aligned with FarCom system 533 | -10/Exiles | Given EX-Vault access code 655 | -10/Exiles | Opened EX-Vault 666 | -10/Exiles | Found Lightpack 2.0 669 | -10/Exiles | Found 0b10 Alert Chip 675 | -10/Exiles | Found Chronowheel 702 | -10/Exiles | Warned to stay clear of 0b10 Research branches 736 | -10/Exiles | Met EX-DEC 746 | -10/Exiles | Learned location of Zion (-6) 841 | -10/Exiles | Discovered new exit (range 11) 996 | -10/Exiles | Visited The Gauntlet 1284 | -10/Exiles | Stole three prototypes: Lightpack 2.0, 0b10 Alert Chip, Chronowheel 1284 | -10/Exiles | Entered Mines 1316 | -9/Mines | Met a Derelict who couldn't figure out how to use a Trap Extractor 1505 | -9/Mines | Discovered new exit (range 8) 1593 | -9/Mines | Entered Materials 1593 | -8/Materials | Evolved 4 slots: Propulsion x2, Utility x2 1713 | -8/Materials | Identified exit to Garrison 1713 | -8/Materials | Entered Garrison 1767 | -8/Garrison | Triggered checkpoint 1833 | -8/Garrison | Installed Relay Interface Framework 1873 | -8/Garrison | Triggered checkpoint 1873 | -8/Garrison | Triggered checkpoint 1877 | -8/Garrison | Build established: Hauler-Mutant 1878 | -8/Garrison | Triggered checkpoint 1909 | -8/Garrison | Discovered new exit (range 15) 1915 | -8/Garrison | Triggered checkpoint 1927 | -8/Garrison | Entered Materials 1951 | -8/Materials | Lost 3 parts (1p1n1w) 2048 | -8/Materials | Lost 3 parts (1p2n) 2069 | -8/Materials | Identified exit to Storage 2235 | -8/Materials | Core integrity fell below 50% 2260 | -8/Materials | Core integrity fell below 20% 2281 | -8/Materials | Destroyed by G-50 Soldier with Heavy Laser Last Messages --------------- U-05 Engineer lays Concrete. Carbon-fiber Leg destroyed. U-05 Engineer lays Concrete. K-01 Serf collects debris. U-05 Engineer lays Concrete. U-05 Engineer builds a Door. Penetrated by Slug. Atomic Centrifuge disabled. Slug penetrates Wall. Acquired Imp. Hover Unit. Gravmag System destroyed. Imp. Hover Unit destroyed. Critical hit (Burn: +37). Gravmag System destroyed. System corrupted: Hrd. Medium Armor Plating rejected. Lightning Gun destroyed. Critical hit (Burn: +37). Atomic Centrifuge disabled. Critical hit (Burn: +37). Map ----- +----------------------------------------------------+ | ?????????????????????????????????????????????????? | | ?????????????????????????????????????????????????? | | ?????????????????????????????????????????????????? | | ?????????????????????????????????????????????????? | | ?????????????????????????????????????????????????? | | ?????????????????????????????????????????????????? | | ?????????????????????????????????????????????????? | | ?????????????????????????????????????????????????? | | ?????????????????????????????????????????????????? | | ?????????????????????????????????????????????????? | | ?????????????????????????????????????????????????? | | ?????????????????????????????????????????????????? | | ?????????????????????????????????????????????????? | | ?????????????????????????????????????????????????? | | ?????????????????????????????????????????????????? | | ?????????????????????????????????????????????????? | | ?????????????????????????????????????????????????? | | ?????????????????????????????????????????????????? | | ?????????????????????????????????????????????????? | | ?????????????????????????????????????????????????? | | ?????????????????????????????????????????????????? | | ?????????????????????????????????????????????????? | | ?????????????????????????????????????????????????? | | ?????????????????????????????????????????????????? | | ???????????????????????###########???????????????? | | ???????????????????????# @ #???????????????? | | ???????????????????????##Y """ #???????????????? | | ????????????????????????# """ #???????????????? | | ????????????????????????# "" #????????Y??????? | | ????????????????????????# #???????????????? | | ????????????????????????# "" #???????????????? | | ????????????????????????# "" #???????????????? | | ????????????????????????# g"" #???????????????? | | ????????????????????????# !#???????????????? | | ?????????????????????########+##########?????????? | | ??????????????? #?????????? | | ???????????Y??? #?????????? | | ??????????????? #?????????? | | ????????????????#+################# #?????????? | | ??????????????????????????????????# #?????????? | | ??????????????????????????????????# #?????????? | | ???????????????????????????######## #?????????? | | ???????????????????????????#! # #?????????? | | ???????????????????????????# # #?????????? | | ???????????????????????????# = #?????????? | | ???????????????????????????# ] %/= #?????????? | | ???????????????????????????# % # #?????????? | | ?????????????????????#####?# # #?????????? | | ?????????????????????# #?##### ## #?????????? | | ????????????????####### ########## #?????????? | +----------------------------------------------------+ Best States ------------- Heat Dissipation 31 Energy Generation 15 Energy Capacity 250 Matter Stores 300 Matter Capacity 300 Sight Range 18 Terrain Scan Density 10 Jamming Range 12 Armor Coverage 225 Resistance: EX 25 Evasion (%) 55 Trap Extractor Capacity 6 Item Schematics ----------------- None Robot Schematics ------------------ None Fabricated ------------ Nothing Alien Tech Used ----------------- None Achievements -------------- Librarian Packrat Challenges ------------ None Game ------ Seed CooledRagnarokExpander Manual? 0 Play Time 01:01:41 Cumulative 8.1 hours Start 2025.01.19 @ 22:30:04 End 2025.01.19 @ 23:42:53 Sessions 1 Manual Loads 0 Difficulty Rogue Special Mode None Game No. 11 Rogue 11 Adventurer 0 Explorer 0 Win Type - Total 0 Types 0/0/0/0/0/0/0/0/0 Lore% 8 Gallery% 12 Achievement% 11 Wizard Run 0 Options --------- Layout 1 ASCII 1 Keyboard 0 Movement Mouse Keybinds 0 Fullscreen 1 Font 24/Smallcaps Map View 50x35 Zoom Use 0% Tactical HUD 0 Map Filters NONE Filters NONE Steam 1 RUN: b32f052d-c748-4c89-b935-5fc85e22bf56